bitfinex/quotes_BTCUSD_20241201
["timestamp","ask_amount","ask_price","bid_price","bid_amount"]
[1733094287701,0.003,97932.0,97924.0,0.00154064]
[1733094287929,1.468163,97931.0,97924.0,0.00154064]
[1733094288145,1.230371,97931.0,97924.0,0.00154064]
[1733094288372,1.49527,97932.0,97924.0,0.00154064]
[1733094289073,2.162972,97933.0,97924.0,0.00154064]
[1733094289287,2.045509,97932.0,97924.0,0.00154064]
[1733094289579,2.041611,97931.0,97924.0,0.00154064]
[1733094289783,0.001,97931.0,97924.0,0.00154064]
[1733094289995,2.12745,97930.0,97924.0,0.00154064]
[1733094290224,2.019291,97930.0,97924.0,0.00154064]
[1733094290462,2.121449,97929.0,97924.0,0.00154064]
[1733094290681,2.121496,97930.0,97924.0,0.00154064]
[1733094290908,1.831474,97929.0,97924.0,0.00154064]
[1733094291157,2.080666,97930.0,97924.0,0.00154064]
[1733094291374,0.00236334,97934.0,97924.0,0.00240434]
[1733094291375,1.892982,97929.0,97924.0,0.00240434]
[1733094291611,1.892314,97931.0,97924.0,0.00240434]
[1733094291832,2.1673,97931.0,97924.0,0.00240434]
[1733094292071,2.22254521,97930.0,97924.0,0.0008637]
[1733094292283,2.321753,97929.0,97924.0,0.0018637]
[1733094292505,0.10284521,97928.0,97924.0,0.0008637]
[1733094292719,2.737362,97927.0,97924.0,0.0008637]
[1733094292937,0.10284521,97926.0,97924.0,0.0008637]
[1733094293161,2.44875721,97926.0,97924.0,0.0008637]
[1733094293392,2.694814,97925.0,97924.0,0.0008637]
[1733094293637,2.25672321,97925.0,97924.0,0.0008637]
[1733094294315,2.23616821,97925.0,97924.0,0.0008637]
[1733094294992,2.23616821,97925.0,97924.0,0.0018637]
[1733094295217,2.23616821,97925.0,97924.0,0.0008637]
[1733094295453,2.23616821,97925.0,97924.0,0.0028637]
[1733094297741,2.23620821,97925.0,97924.0,0.0008637]
[1733094297955,2.24020821,97925.0,97924.0,0.0008637]
[1733094298175,2.24320821,97925.0,97924.0,0.0008637]
[1733094298404,2.10640721,97925.0,97924.0,0.0008637]
[1733094298625,2.09494821,97925.0,97924.0,0.0008637]
[1733094299077,2.14134055,97925.0,97924.0,0.0008637]
[1733094299297,2.14134055,97925.0,97890.0,0.15774014]
[1733094299298,0.01,97922.0,97890.0,0.1277]
[1733094299515,0.10284521,97917.0,97890.0,0.1277]
[1733094299732,2.527641,97916.0,97890.0,0.0786]
[1733094299948,2.61956421,97915.0,97890.0,0.0786]
[1733094300176,2.798903,97914.0,97890.0,0.08014064]
[1733094300393,0.10284521,97913.0,97890.0,0.08014064]
[1733094300618,2.50458721,97913.0,97900.0,0.15574014]
[1733094300834,0.10284521,97913.0,97900.0,0.0471]
[1733094301069,1.73898,97912.0,97900.0,0.0445]
[1733094301326,0.10284521,97911.0,97900.0,0.0445]
[1733094301561,1.796064,97910.0,97900.0,0.0445]
[1733094301798,1.88093421,97909.0,97900.0,0.0445]
[1733094302034,1.782626,97908.0,97900.0,0.0445]
[1733094302269,0.10284521,97907.0,97900.0,0.0445]
[1733094302454,1.62686221,97907.0,97900.0,0.0445]
[1733094302743,1.705812,97906.0,97900.0,0.0445]
[1733094303181,1.705812,97906.0,97900.0,0.0455]
[1733094303399,4e-05,97925.0,97901.0,0.08274064]
[1733094303400,0.1711,97905.0,97901.0,0.08274064]
[1733094303629,0.040919,97905.0,97904.0,0.00154064]
[1733094305414,0.040919,97905.0,97904.0,0.13314835]
[1733094306348,0.040919,97905.0,97904.0,0.13134064]
[1733094306563,0.040919,97905.0,97904.0,0.13034064]
[1733094306806,0.040919,97905.0,97904.0,0.13234064]
[1733094307268,0.040919,97905.0,97904.0,0.13414832]
[1733094307530,0.040919,97905.0,97904.0,0.13234064]
[1733094308004,0.040919,97905.0,97904.0,0.13414824]
[1733094308250,0.040919,97905.0,97904.0,0.23399345]
[1733094308488,4e-05,97910.0,97909.0,0.12524064]
[1733094308705,4e-05,97910.0,97909.0,0.22808585]
[1733094309428,0.00413,97910.0,97909.0,0.22808585]
[1733094309645,4e-05,97920.0,97919.0,0.00154064]
[1733094309909,4e-05,97920.0,97919.0,0.22808585]
[1733094311036,4e-05,97920.0,97919.0,0.12524064]
[1733094311480,4e-05,97920.0,97919.0,0.13024064]
[1733094311992,0.00104,97920.0,97919.0,0.13924064]
[1733094313336,0.00104,97920.0,97919.0,0.09214064]
[1733094313562,1.178758,97920.0,97919.0,0.09214064]
[1733094314018,1.162349,97920.0,97919.0,0.09214064]
[1733094314885,1.162349,97920.0,97919.0,0.01554064]
[1733094315142,1.162349,97920.0,97919.0,0.014]
[1733094315375,1.162349,97920.0,97919.0,0.01554064]
[1733094315834,1.163213,97920.0,97919.0,0.01554064]
[1733094317496,1.163213,97920.0,97919.0,0.014]
[1733094317768,0.182803,97920.0,97919.0,0.014]
[1733094317982,0.001904,97920.0,97919.0,0.014]
[1733094318212,0.001904,97920.0,97919.0,0.01554064]
[1733094318435,0.001904,97920.0,97919.0,0.242293]
[1733094318677,0.001904,97920.0,97919.0,0.24048585]
[1733094318920,0.000904,97920.0,97919.0,0.23148585]
[1733094319348,0.001904,97920.0,97919.0,0.23448585]
[1733094319863,0.000904,97920.0,97919.0,0.22648585]
[1733094320351,4e-05,97925.0,97924.0,0.00154064]
[1733094320611,4e-05,97925.0,97924.0,0.23829263]
[1733094320846,4e-05,97925.0,97924.0,0.22648585]
[1733094321781,0.0147117,97980.0,97924.0,0.22648585]
[1733094321782,0.00603372,97989.0,97953.0,0.00416628]
[1733094322003,0.0545,97984.0,97956.0,0.00416628]
[1733094322221,1.8823209,97983.0,97957.0,0.00416628]
[1733094322457,1.633116,97982.0,97957.0,0.00416628]
[1733094322695,0.10284521,97981.0,97957.0,0.00416628]
[1733094322921,1.72115521,97981.0,97957.0,0.00416628]
[1733094323148,1.635393,97980.0,97957.0,0.00416628]
[1733094323375,0.10284521,97979.0,97956.0,0.002]
[1733094323599,1.23773421,97979.0,97956.0,0.001]
[1733094323831,2.859485,97978.0,97956.0,0.00416628]
[1733094324058,0.10284521,97977.0,97956.0,0.00416628]
[1733094324282,3.081894,97976.0,97952.0,0.01]
[1733094324531,2.65337221,97975.0,97952.0,0.01]
[1733094324751,0.967189,97974.0,97952.0,0.01]
[1733094324971,0.10284521,97973.0,97957.0,0.001]
[1733094325191,1.27658421,97973.0,97954.0,0.00416628]
[1733094325406,1.347423,97972.0,97954.0,0.00416628]
[1733094325618,0.10284521,97971.0,97954.0,0.00416628]
[1733094325861,1.39383521,97971.0,97954.0,0.00416628]
[1733094326083,0.705355,97970.0,97954.0,0.00416628]
[1733094326308,0.10284521,97969.0,97954.0,0.00416628]
[1733094326534,0.10284521,97969.0,97952.0,0.01]
[1733094326535,1.1957,97968.0,97952.0,0.00416628]
[1733094326760,0.10284521,97967.0,97952.0,0.01416628]
[1733094326973,1.484463,97966.0,97952.0,0.01416628]
[1733094327184,0.841562,97965.0,97955.0,0.00361828]
[1733094327397,0.003,97970.0,97953.0,0.00180686]
[1733094327398,0.238287,97964.0,97961.0,0.00361828]
[1733094327610,0.003,97970.0,97964.0,0.00361828]
[1733094327611,0.267223,97969.0,97964.0,0.00361828]
[1733094327876,0.689796,97968.0,97964.0,0.00361828]
[1733094328088,0.720366,97969.0,97964.0,0.00361828]
[1733094328297,0.78222,97968.0,97962.0,0.0827]
[1733094328535,0.974707,97969.0,97964.0,0.00361828]
[1733094328755,0.002,97967.0,97964.0,0.00361828]
[1733094328990,0.690274,97966.0,97964.0,0.00361828]
[1733094329453,1.070388,97968.0,97962.0,0.0827]
[1733094329693,1.217308,97968.0,97962.0,0.0827]
[1733094329922,2.159755,97967.0,97959.0,0.00361828]
[1733094330137,1.968946,97966.0,97959.0,0.00361828]
[1733094330364,0.002,97966.0,97959.0,0.00361828]
[1733094330612,1.755906,97965.0,97959.0,0.00361828]
[1733094330850,1.893969,97964.0,97959.0,0.00361828]
[1733094331106,2.034472,97963.0,97953.0,0.08]
[1733094331319,0.10284521,97962.0,97945.0,0.0832]
[1733094331540,2.43954921,97962.0,97945.0,0.0832]
[1733094331776,1.855069,97961.0,97945.0,0.0832]
[1733094332010,0.10284521,97960.0,97945.0,0.0832]
[1733094332234,2.166826,97959.0,97945.0,0.0832]
[1733094332448,0.10284521,97958.0,97945.0,0.0832]
[1733094332669,2.30547,97957.0,97945.0,0.0832]
[1733094332950,1.90272721,97956.0,97945.0,0.0832]
[1733094333187,1.895764,97955.0,97945.0,0.0832]
[1733094333429,0.10284521,97954.0,97945.0,0.0832]
[1733094333884,2.183988,97953.0,97945.0,0.0832]
[1733094334099,1.778731,97952.0,97945.0,0.0832]
[1733094334308,2.167059,97953.0,97945.0,0.0832]
[1733094335174,2.101189,97952.0,97945.0,0.0842]
[1733094335407,1.976165,97952.0,97945.0,0.0832]
[1733094335627,2.475536,97952.0,97945.0,0.0862]
[1733094335852,2.24354,97952.0,97945.0,0.0862]
[1733094336086,0.00017859,97953.0,97945.0,0.0862]
[1733094336087,1.84277,97951.0,97945.0,0.0862]
[1733094336306,0.10284521,97951.0,97945.0,0.002]
[1733094336532,2.50891221,97950.0,97938.0,0.00361828]
[1733094336755,2.094464,97949.0,97945.0,0.003]
[1733094336971,2.050482,97949.0,97945.0,0.004]
[1733094337186,1.807896,97948.0,97945.0,0.004]
[1733094337420,2.081244,97949.0,97945.0,0.003]
[1733094338030,1.99629,97949.0,97945.0,0.003]
[1733094338247,1.99105,97949.0,97945.0,0.003]
[1733094338468,2.461722,97949.0,97938.0,0.00361828]
[1733094338691,1.281311,97948.0,97945.0,0.001]
[1733094338904,0.00017859,97953.0,97946.0,0.08521828]
[1733094338905,0.117949,97947.0,97946.0,0.08521828]
[1733094339130,0.269675,97952.0,97946.0,0.13471828]
[1733094339366,1.182183,97952.0,97946.0,0.13749966]
[1733094339591,1.061075,97952.0,97946.0,0.13749966]
[1733094339845,0.00017859,97953.0,97952.0,0.00361828]
[1733094340053,0.69760959,97953.0,97952.0,0.00361828]
[1733094340278,0.98590959,97953.0,97952.0,0.00633939]
[1733094340508,0.98590159,97953.0,97952.0,0.00361828]
[1733094340800,0.91605559,97953.0,97952.0,0.00361828]
[1733094341505,0.91605559,97953.0,97946.0,0.1331]
[1733094341715,0.91605559,97953.0,97952.0,0.002]
[1733094341716,0.00017859,97953.0,97952.0,0.002]
[1733094341941,0.00017859,97953.0,97952.0,0.003]
[1733094342365,0.00017859,97953.0,97952.0,0.00283047]
[1733094342584,0.00017859,97953.0,97946.0,0.0836]
[1733094342800,1.610673,97952.0,97946.0,0.08821828]
[1733094343028,1.610673,97952.0,97946.0,0.08621828]
[1733094343294,1.610673,97952.0,97946.0,0.08521828]
[1733094343998,4e-05,97950.0,97946.0,0.08521828]
[1733094344222,0.687446,97949.0,97946.0,0.08521828]
[1733094344441,0.687446,97949.0,97947.0,0.0491]
[1733094344648,0.687446,97949.0,97947.0,0.0523594]
[1733094344854,0.687446,97949.0,97947.0,0.0491]
[1733094345288,0.687446,97949.0,97948.0,0.00325841]
[1733094345495,0.687446,97949.0,97948.0,0.00361828]
[1733094345706,0.687446,97949.0,97948.0,0.00687669]
[1733094346566,0.687446,97949.0,97948.0,0.00887669]
[1733094346769,4e-05,97950.0,97948.0,0.00887669]
[1733094346975,1.15373,97949.0,97948.0,0.00887669]
[1733094347421,1.15373,97949.0,97948.0,0.00961828]
[1733094347845,1.15373,97949.0,97948.0,0.00361828]
[1733094348060,1.15373,97949.0,97948.0,0.00961828]
[1733094348335,1.15373,97949.0,97948.0,0.00561828]
[1733094348549,1.15373,97949.0,97948.0,0.004]
[1733094348763,1.076249,97949.0,97948.0,0.004]
[1733094348976,1.076249,97949.0,97948.0,0.006]
[1733094349612,0.922186,97949.0,97948.0,0.006]
[1733094349829,0.837943,97949.0,97948.0,0.006]
[1733094351218,0.837943,97949.0,97948.0,0.00773]
[1733094351630,0.68614779,97949.0,97948.0,0.00773]
[1733094355852,0.762728,97949.0,97948.0,0.00773]
[1733094356101,0.762728,97949.0,97948.0,0.06114828]
[1733094359389,4e-05,97950.0,97948.0,0.06114828]
[1733094359614,0.850021,97949.0,97948.0,0.06114828]
[1733094360324,0.850021,97949.0,97948.0,0.05914828]
[1733094360530,0.850021,97949.0,97948.0,0.00573]
[1733094360774,0.95286621,97949.0,97948.0,0.00773]
[1733094361171,0.95286621,97949.0,97948.0,0.00573]
[1733094361391,0.95286621,97949.0,97948.0,0.00773]
[1733094362462,0.95236621,97949.0,97948.0,0.00773]
[1733094362876,0.95236621,97949.0,97948.0,0.00373]
[1733094363082,0.95436621,97949.0,97948.0,0.00373]
[1733094363306,0.95236621,97949.0,97948.0,0.00173]
[1733094363803,0.95836621,97949.0,97948.0,0.00273]
[1733094364031,0.95436621,97949.0,97948.0,0.00273]
[1733094364249,0.3339,97949.0,97948.0,0.00273]
[1733094364457,0.3389,97949.0,97948.0,0.00273]
[1733094365099,0.44174521,97949.0,97948.0,0.00273]
[1733094366174,0.44174521,97949.0,97934.0,0.064757]
[1733094366382,0.10284521,97945.0,97918.0,0.0477]
[1733094366638,0.007,97949.0,97910.0,0.0017278]
[1733094366639,0.10284521,97934.0,97910.0,0.0017278]
[1733094366850,0.10284521,97929.0,97910.0,0.0017278]
[1733094367060,4.29975321,97928.0,97910.0,0.0017278]
[1733094367283,0.10284521,97922.0,97910.0,0.0017278]
[1733094367496,3.338255,97921.0,97910.0,0.0017278]
[1733094367728,3.14525321,97920.0,97910.0,0.0017278]
[1733094367983,3.14136,97919.0,97910.0,0.0017278]
[1733094368182,3.28231021,97918.0,97910.0,0.0017278]
[1733094368394,3.179455,97917.0,97910.0,0.0017278]
[1733094368625,3.21916321,97916.0,97910.0,0.0017278]
[1733094368831,3.834033,97915.0,97896.0,0.0302915]
[1733094369047,4.16338321,97914.0,97896.0,0.0302915]
[1733094369280,4.332295,97913.0,97896.0,0.1133915]
[1733094369484,3.45955021,97912.0,97896.0,0.1133915]
[1733094369691,1.989331,97911.0,97900.0,0.10864014]
[1733094369928,2.061671,97910.0,97901.0,0.00361828]
[1733094370127,2.210451,97909.0,97901.0,0.00361828]
[1733094370347,2.252817,97908.0,97901.0,0.00361828]
[1733094370575,2.24144,97907.0,97901.0,0.00361828]
[1733094370800,2.134984,97906.0,97898.0,0.00180783]
[1733094371010,1.061435,97905.0,97901.0,0.001]
[1733094371259,0.865021,97904.0,97901.0,0.002]
[1733094371482,0.418454,97903.0,97901.0,0.002]
[1733094371709,1.243562,97913.0,97899.0,0.0574]
[1733094371939,0.001,97914.0,97903.0,0.10864014]
[1733094371940,0.274551,97912.0,97903.0,0.10864014]
[1733094372145,0.001,97914.0,97903.0,0.10864014]
[1733094372146,0.759335,97913.0,97903.0,0.10864014]
[1733094372352,0.759335,97913.0,97897.0,0.00180766]
[1733094372353,0.551954,97913.0,97897.0,0.00180766]
[1733094372586,1.431585,97913.0,97900.0,0.10864014]
[1733094372795,1.126135,97912.0,97900.0,0.11044779]
[1733094373042,0.00017849,97918.0,97900.0,0.11044779]
[1733094373043,1.67018,97917.0,97900.0,0.11044779]
[1733094373237,1.357871,97916.0,97908.0,0.08864014]
[1733094373451,0.00017849,97918.0,97901.0,0.00180761]
[1733094373452,1.311088,97915.0,97901.0,0.00180761]
[1733094373662,2.665676,97917.0,97890.0,0.10864014]
[1733094373868,2.338651,97916.0,97901.0,0.00173]
[1733094374091,2.488218,97917.0,97901.0,0.00173]
[1733094374333,2.488218,97917.0,97891.0,0.03283766]
[1733094374334,2.519116,97917.0,97891.0,0.03283766]
[1733094374520,2.38624721,97916.0,97891.0,0.03103]
[1733094374733,2.38624721,97916.0,97892.0,0.0799]
[1733094374734,2.933578,97915.0,97892.0,0.0799]
[1733094374939,0.10384521,97916.0,97892.0,0.0799]
[1733094374940,2.44626821,97914.0,97892.0,0.0799]
[1733094375155,1.413686,97913.0,97892.0,0.0799]
[1733094375375,0.10284521,97912.0,97892.0,0.0799]
[1733094375630,1.324619,97911.0,97893.0,0.0018079]
[1733094375836,0.001,97917.0,97900.0,0.10864014]
[1733094375837,0.56109,97910.0,97900.0,0.10864014]
[1733094376043,1.952846,97916.0,97901.0,0.0807]
[1733094376261,1.978534,97916.0,97901.0,0.0807]
[1733094376764,2.282508,97915.0,97901.0,0.0807]
[1733094376961,1.855958,97914.0,97901.0,0.0807]
[1733094377377,2.368769,97917.0,97901.0,0.0807]
[1733094377598,0.002,97916.0,97901.0,0.0807]
[1733094377829,2.031776,97915.0,97901.0,0.0807]
[1733094378048,2.031776,97915.0,97901.0,0.0607]
[1733094378265,1.704856,97914.0,97901.0,0.0607]
[1733094378466,1.819792,97915.0,97901.0,0.0607]
[1733094378685,1.817873,97915.0,97901.0,0.0607]
[1733094378969,0.001,97916.0,97901.0,0.0607]
[1733094378970,1.635374,97914.0,97901.0,0.0607]
[1733094379190,0.00017849,97918.0,97902.0,0.04890771]
[1733094379398,1.072025,97917.0,97908.0,0.10864014]
[1733094379597,1.072025,97917.0,97909.0,0.00180761]
[1733094379811,1.075025,97917.0,97909.0,0.00180761]
[1733094380023,0.99326,97916.0,97908.0,0.10864014]
[1733094380451,0.99326,97916.0,97908.0,0.08864014]
[1733094380663,1.049108,97915.0,97908.0,0.08964014]
[1733094380877,0.857713,97914.0,97908.0,0.08964014]
[1733094381079,0.784012,97913.0,97909.0,0.002]
[1733094381287,0.816969,97912.0,97908.0,0.08964014]
[1733094381505,0.796953,97911.0,97908.0,0.08964014]
[1733094381713,1.591518,97910.0,97908.0,0.09264014]
[1733094381945,1.541041,97909.0,97908.0,0.09264014]
[1733094382156,1.541041,97909.0,97908.0,0.17484014]
[1733094382374,1.413708,97909.0,97908.0,0.0852]
[1733094382588,1.413708,97909.0,97908.0,0.0662]
[1733094383040,1.413708,97909.0,97908.0,0.0652]
[1733094383501,1.413708,97909.0,97908.0,0.0482]
[1733094383720,1.413708,97909.0,97908.0,0.003]
[1733094383963,0.819363,97909.0,97908.0,0.007]
[1733094384187,0.555926,97909.0,97908.0,0.007]
[1733094384407,0.259285,97909.0,97908.0,0.007]
[1733094384851,0.258285,97909.0,97908.0,0.003]
[1733094385059,0.258285,97909.0,97908.0,0.007]
[1733094385551,0.258285,97909.0,97908.0,0.004]
[1733094385778,0.258285,97909.0,97908.0,0.006]
[1733094386242,0.258285,97909.0,97902.0,0.0471]
[1733094386461,0.871349,97908.0,97903.0,0.0828]
[1733094386699,0.0017308,97916.0,97904.0,0.10284521]
[1733094386925,0.0017308,97916.0,97906.0,0.10864014]
[1733094387151,0.548505,97915.0,97908.0,0.001]
[1733094387391,0.548505,97915.0,97909.0,0.10284521]
[1733094387610,0.548505,97915.0,97909.0,0.0037328]
[1733094388759,0.548505,97915.0,97906.0,0.09418044]
[1733094388977,0.548505,97915.0,97907.0,0.00350197]
[1733094389234,0.282184,97915.0,97905.0,0.07690197]
[1733094389444,0.414422,97914.0,97909.0,0.002]
[1733094389658,0.0017308,97916.0,97909.0,0.003]
[1733094389659,0.198365,97913.0,97909.0,0.003]
[1733094389901,0.432057,97914.0,97910.0,0.00437253]
[1733094390103,1.005182,97914.0,97910.0,0.00437253]
[1733094390311,0.633209,97913.0,97910.0,0.00437253]
[1733094390543,0.689679,97915.0,97907.0,0.002]
[1733094390770,0.0017308,97916.0,97911.0,0.00437088]
[1733094391002,1.589131,97915.0,97909.0,0.001]
[1733094391229,0.0017308,97916.0,97912.0,0.00436923]
[1733094391448,0.0017308,97916.0,97913.0,0.04870737]
[1733094391665,0.0017308,97916.0,97913.0,0.05306834]
[1733094392369,0.0017308,97916.0,97914.0,0.0753]
[1733094392597,0.0017308,97916.0,97915.0,0.00180725]
[1733094392802,0.0017308,97916.0,97915.0,0.00616493]
[1733094393028,0.0017308,97916.0,97914.0,0.06146493]
[1733094393257,0.0017308,97916.0,97915.0,0.00399454]
[1733094393481,0.0017308,97916.0,97915.0,0.00489789]
[1733094393706,0.0027308,97916.0,97915.0,0.00489789]
[1733094394152,1.5987998,97916.0,97914.0,0.04636282]
[1733094394411,0.0027308,97916.0,97915.0,0.00366166]
[1733094394620,0.0017308,97916.0,97915.0,0.00366166]
[1733094395088,1.7929358,97916.0,97915.0,0.00466166]
[1733094395300,1.4239008,97916.0,97915.0,0.00466166]
[1733094395513,0.0027308,97916.0,97902.0,0.03156166]
[1733094395725,0.0037308,97916.0,97902.0,0.03156166]
[1733094395938,0.84607,97915.0,97903.0,0.00437257]
[1733094396153,0.264832,97914.0,97903.0,0.00437257]
[1733094396385,0.313588,97915.0,97904.0,0.00450836]
[1733094396600,0.68374,97915.0,97904.0,0.00450836]
[1733094397272,0.68374,97915.0,97905.0,0.0799]
[1733094397477,0.68374,97915.0,97905.0,0.0599]
[1733094397717,0.454663,97915.0,97906.0,0.00450343]
[1733094397937,0.628298,97914.0,97906.0,0.00450343]
[1733094398140,0.572076,97913.0,97906.0,0.00450343]
[1733094398387,0.0037308,97916.0,97906.0,0.00450343]
[1733094398596,0.2602,97915.0,97906.0,0.00450343]
[1733094399028,0.0047308,97916.0,97906.0,0.00450343]
[1733094399265,0.0027308,97916.0,97905.0,0.04440343]
[1733094399475,0.0027308,97916.0,97907.0,0.00393803]
[1733094399476,0.0017308,97916.0,97907.0,0.00393803]
[1733094399765,0.0017308,97916.0,97905.0,0.04440343]
[1733094399766,0.0017308,97916.0,97906.0,0.0049405]
[1733094399978,0.0017308,97916.0,97908.0,0.00393556]
[1733094399979,0.0017306,97915.0,97908.0,0.00393556]
[1733094400202,0.0017306,97915.0,97907.0,0.10284521]
[1733094400203,0.0017306,97915.0,97909.0,0.049]
[1733094400417,1.423262,97914.0,97909.0,0.00402301]
[1733094400860,0.293125,97913.0,97905.0,0.0008653]
[1733094401107,0.221979,97912.0,97905.0,0.0008653]
[1733094401327,0.0017306,97915.0,97906.0,0.00351099]
[1733094401760,0.230391,97914.0,97906.0,0.00351099]
[1733094401983,0.23006891,97914.0,97906.0,0.00351099]
[1733094402218,0.507009,97914.0,97906.0,0.00351099]
[1733094402445,0.507009,97913.0,97907.0,0.0793]
[1733094402656,0.468209,97913.0,97907.0,0.0793]
[1733094402867,0.468209,97912.0,97907.0,0.0793]
[1733094403072,0.0017306,97915.0,97907.0,0.0793]
[1733094403287,0.468209,97914.0,97907.0,0.0793]
[1733094403505,0.0017306,97915.0,97908.0,0.15485126]
[1733094403740,0.0017306,97915.0,97909.0,0.0593]
[1733094403957,0.0017306,97915.0,97910.0,0.10284521]
[1733094404183,0.0017306,97915.0,97911.0,0.00349948]
[1733094404416,0.0017306,97915.0,97911.0,0.10634469]
[1733094404843,0.0017306,97915.0,97912.0,0.00349397]
[1733094405130,0.0017306,97915.0,97911.0,0.08634469]
[1733094405746,0.0017306,97915.0,97909.0,0.0593]
[1733094405957,0.0017306,97915.0,97910.0,0.10284521]
[1733094406624,0.0017306,97915.0,97910.0,0.08284521]
[1733094407796,0.0017306,97915.0,97910.0,0.08384521]
[1733094408008,0.0017306,97915.0,97910.0,0.001]
[1733094408216,0.314893,97914.0,97910.0,0.001]
[1733094408469,0.03411696,97913.0,97910.0,0.001]
[1733094408679,1.78683921,97912.0,97910.0,0.001]
[1733094408900,1.6827108,97911.0,97910.0,0.001]
[1733094409092,1.72088521,97911.0,97910.0,0.001]
[1733094409303,1.72088521,97911.0,97901.0,0.0008654]
[1733094409527,1.57184301,97910.0,97901.0,0.0008654]
[1733094409750,0.922898,97909.0,97901.0,0.0008654]
[1733094409965,0.10284521,97908.0,97901.0,0.0008654]
[1733094410221,0.868734,97907.0,97901.0,0.0008654]
[1733094410425,1.188763,97906.0,97901.0,0.0008654]
[1733094410642,1.265446,97907.0,97901.0,0.0008654]
[1733094410861,1.210825,97906.0,97901.0,0.0008654]
[1733094411070,1.258795,97907.0,97901.0,0.0008654]
[1733094411456,0.10284521,97908.0,97901.0,0.0008654]
[1733094411651,1.19805,97907.0,97901.0,0.0008654]
[1733094412072,1.19805,97907.0,97905.0,0.0028653]
[1733094412245,1.155637,97907.0,97905.0,0.0028653]
[1733094412439,1.15664,97907.0,97905.0,0.0008653]
[1733094412721,1.313638,97906.0,97905.0,0.0008653]
[1733094412841,1.236398,97906.0,97905.0,0.0028653]
[1733094413344,1.187198,97906.0,97905.0,0.0028653]
[1733094413691,0.886127,97906.0,97905.0,0.0008653]
[1733094413898,1.116633,97907.0,97905.0,0.0008653]
[1733094414120,1.116633,97907.0,97905.0,0.0028653]
[1733094414328,0.824187,97906.0,97905.0,0.0028653]
[1733094414526,0.804838,97906.0,97905.0,0.0028653]
[1733094414914,0.552104,97906.0,97905.0,0.0028653]
[1733094415310,0.53312,97906.0,97905.0,0.0008653]
[1733094415519,0.483973,97906.0,97905.0,0.0008653]
[1733094415724,0.484913,97907.0,97905.0,0.0028653]
[1733094415938,0.631366,97907.0,97905.0,0.0028653]
[1733094416150,0.100347,97906.0,97905.0,0.0008653]
[1733094416352,0.100347,97906.0,97905.0,0.0028653]
[1733094416765,1.583684,97914.0,97905.0,0.0028653]
[1733094416972,0.513768,97906.0,97905.0,0.0008653]
[1733094417177,0.513768,97906.0,97905.0,0.0028653]
[1733094418399,0.513768,97906.0,97905.0,0.0008653]
[1733094419213,0.36399402,97906.0,97905.0,0.0008653]
[1733094419420,0.486715,97906.0,97905.0,0.0008653]
[1733094419627,0.486715,97906.0,97905.0,0.0028653]
[1733094420400,0.0017306,97915.0,97905.0,0.1287653]
[1733094420604,0.523786,97914.0,97905.0,0.23740544]
[1733094421040,0.523786,97914.0,97905.0,0.11150544]
[1733094421930,0.461989,97914.0,97905.0,0.10950544]
[1733094422137,0.708626,97914.0,97905.0,0.11150544]
[1733094422759,0.708626,97914.0,97905.0,0.10950544]
[1733094422967,0.708626,97914.0,97905.0,0.11050544]
[1733094423631,0.384274,97914.0,97905.0,0.11050544]
[1733094423849,1.173386,97914.0,97905.0,0.11050544]
[1733094424068,1.040309,97914.0,97905.0,0.11050544]
[1733094424309,0.10284521,97913.0,97905.0,0.11050544]
[1733094424565,0.10284521,97913.0,97905.0,0.0018653]
[1733094424566,0.995918,97912.0,97905.0,0.0018653]
[1733094424804,0.10510504,97911.0,97905.0,0.0018653]
[1733094425018,2.108525,97910.0,97905.0,0.0018653]
[1733094425256,0.10510509,97909.0,97905.0,0.0008653]
[1733094425480,0.10510509,97909.0,97905.0,0.0018653]
[1733094425689,1.898501,97908.0,97905.0,0.0008653]
[1733094425890,0.10510509,97907.0,97905.0,0.0008653]
[1733094426312,1.42321,97906.0,97905.0,0.0008653]
[1733094426520,1.52605521,97906.0,97905.0,0.0008653]
[1733094428305,1.50780921,97906.0,97905.0,0.0008653]
[1733094428769,1.50780921,97906.0,97905.0,0.0028653]
[1733094429218,1.03610321,97906.0,97905.0,0.0028653]
[1733094429448,1.00293621,97906.0,97905.0,0.0038653]
[1733094429884,1.00293621,97906.0,97905.0,0.0028653]
[1733094430111,1.00293621,97906.0,97905.0,0.0038653]
[1733094431625,0.98598921,97906.0,97905.0,0.0038653]
[1733094433588,0.68792121,97906.0,97905.0,0.0038653]
[1733094434693,0.68792121,97906.0,97905.0,0.0037372]
[1733094434919,0.76322121,97906.0,97905.0,0.0037372]
[1733094435131,0.76322121,97906.0,97905.0,0.0033372]
[1733094435564,0.0753,97905.0,97862.0,0.0779]
[1733094435896,0.10284521,97899.0,97862.0,0.0779]
[1733094436117,4.15315048,97898.0,97862.0,0.0779]
[1733094436342,4.22619,97897.0,97862.0,0.0779]
[1733094436550,0.1272,97892.0,97861.0,0.0476]
[1733094436777,4.25599584,97891.0,97862.0,0.001]
[1733094436993,4.15089,97890.0,97862.0,0.001]
[1733094437189,2.87903184,97889.0,97862.0,0.001]
[1733094437423,2.724894,97888.0,97862.0,0.001]
[1733094437636,2.75428884,97887.0,97862.0,0.001]
[1733094437866,2.708256,97886.0,97862.0,0.001]
[1733094438084,2.24227484,97885.0,97861.0,0.0476]
[1733094438303,0.10510584,97885.0,97861.0,0.0476]
[1733094438524,2.008316,97884.0,97861.0,0.0476]
[1733094438746,0.10510584,97883.0,97861.0,0.0476]
[1733094438985,2.747839,97882.0,97861.0,0.0476]
[1733094439193,2.06564884,97881.0,97861.0,0.0476]
[1733094439411,1.813906,97880.0,97861.0,0.0476]
[1733094439636,0.0031784,97885.0,97861.0,0.0476]
[1733094439637,1.15220785,97879.0,97861.0,0.0476]
[1733094439855,1.115376,97878.0,97861.0,0.0476]
[1733094440068,0.00226064,97877.0,97861.0,0.0476]
[1733094440334,0.00226064,97877.0,97869.0,0.0779]
[1733094440335,0.15327,97877.0,97869.0,0.0779]
[1733094440545,0.001,97883.0,97869.0,0.1275]
[1733094440781,0.753874,97882.0,97869.0,0.1275]
[1733094441442,0.338921,97881.0,97869.0,0.1275]